[Event "Titled Tuesday Blitz May 9 Early 2023"]
[White "Torres Dominguez, David"]
[Black "De Souza, Cristiano Gomes"]
[WhiteFideId "2220857"]
[BlackFideId "2151758"]
[WhiteElo "1999"]
[BlackElo "2068"]
[Result "0-1"]
[Round "11"]
[TimeControl "180+2"]
[Date "2023.05.09"]
[WhiteClock "0:00:00"]
[BlackClock "0:00:57"]

1. e4 {[%clk 0:03:00]}  c5 {[%clk 0:02:58]} 2. Nc3 {[%clk 0:02:59]}  d6 {[%clk 0:02:58]} 3. f4 {[%clk 0:02:56]}  a6 {[%clk 0:02:56]} 4. Nf3 {[%clk 0:02:55]}  Bg4 {[%clk 0:02:54]} 5. Bc4 {[%clk 0:02:52]}  Bxf3 {[%clk 0:02:53]} 6. Qxf3 {[%clk 0:02:51]}  Nc6 {[%clk 0:02:54]} 7. a4 {[%clk 0:02:49]}  Nd4 {[%clk 0:02:54]} 8. Qd1 {[%clk 0:02:48]}  g6 {[%clk 0:02:53]} 9. O-O {[%clk 0:02:47]}  Bg7 {[%clk 0:02:53]} 10. d3 {[%clk 0:02:47]}  e6 {[%clk 0:02:50]} 11. f5 {[%clk 0:02:37]}  gxf5 {[%clk 0:02:40]} 12. exf5 {[%clk 0:02:36]}  Nxf5 {[%clk 0:02:40]} 13. Qh5 {[%clk 0:01:46]}  Nf6 {[%clk 0:02:35]} 14. Qh3 {[%clk 0:01:44]}  d5 {[%clk 0:02:29]} 15. Bb3 {[%clk 0:01:25]}  Nd4 {[%clk 0:02:27]} 16. Bg5 {[%clk 0:01:20]}  Nxb3 {[%clk 0:02:23]} 17. cxb3 {[%clk 0:01:18]}  c4 {[%clk 0:02:24]} 18. d4 {[%clk 0:01:12]}  cxb3 {[%clk 0:02:19]} 19. Qh4 {[%clk 0:01:11]}  Rc8 {[%clk 0:02:07]} 20. Bxf6 {[%clk 0:01:10]}  Bxf6 {[%clk 0:02:06]} 21. Rxf6 {[%clk 0:00:59]}  Qe7 {[%clk 0:02:01]} 22. Qf4 {[%clk 0:00:54]}  Rc4 {[%clk 0:01:58]} 23. Rf1 {[%clk 0:00:52]}  Rf8 {[%clk 0:01:51]} 24. Qb8+ {[%clk 0:00:28]}  Qd8 {[%clk 0:01:50]} 25. Qxb7 {[%clk 0:00:27]}  Qd7 {[%clk 0:01:44]} 26. Qxa6 {[%clk 0:00:25]}  Rxd4 {[%clk 0:01:41]} 27. Nb5 {[%clk 0:00:22]}  Rg4 {[%clk 0:01:33]} 28. Nd6+ {[%clk 0:00:20]}  Ke7 {[%clk 0:01:32]} 29. Nb5 {[%clk 0:00:15]}  Rg7 {[%clk 0:01:26]} 30. Qb6 {[%clk 0:00:14]}  Rfg8 {[%clk 0:01:23]} 31. Qc5+ {[%clk 0:00:13]}  Kd8 {[%clk 0:01:22]} 32. Qb6+ {[%clk 0:00:11]}  Ke7 {[%clk 0:01:17]} 33. g3 {[%clk 0:00:12]}  d4 {[%clk 0:01:14]} 34. Qc5+ {[%clk 0:00:11]}  Kd8 {[%clk 0:01:11]} 35. Qb6+ {[%clk 0:00:11]}  Ke7 {[%clk 0:01:09]} 36. Nxd4 {[%clk 0:00:11]}  Rd8 {[%clk 0:01:03]} 37. Qc5+ {[%clk 0:00:09]}  Ke8 {[%clk 0:01:02]} 38. Nc6 {[%clk 0:00:07]}  Rc8 {[%clk 0:01:01]} 39. Rxe6+ {[%clk 0:00:00]}  Qxe6 {[%clk 0:00:57]} 0-1


[Site "https://www.chess.com"]

[Event "Titled Tuesday Blitz May 9 Early 2023"]
[White "Carrasco Miranda, Andres"]
[Black "Mrudul Dehankar"]
[WhiteFideId "3405990"]
[BlackFideId "25096990"]
[WhiteElo "2183"]
[BlackElo "2139"]
[Result "0-1"]
[Round "11"]
[TimeControl "180+2"]
[Date "2023.05.09"]
[WhiteClock "0:00:00"]
[BlackClock "0:00:03"]

1. d4 {[%clk 0:02:56]}  Nf6 {[%clk 0:02:58]} 2. c4 {[%clk 0:02:51]}  e6 {[%clk 0:02:57]} 3. g3 {[%clk 0:02:48]}  Bb4+ {[%clk 0:02:54]} 4. Nd2 {[%clk 0:02:47]}  c5 {[%clk 0:02:44]} 5. Nf3 {[%clk 0:02:47]}  Nc6 {[%clk 0:02:40]} 6. a3 {[%clk 0:02:24]}  Bxd2+ {[%clk 0:02:35]} 7. Qxd2 {[%clk 0:02:25]}  Ne4 {[%clk 0:02:34]} 8. Qc2 {[%clk 0:02:24]}  Qa5+ {[%clk 0:02:32]} 9. b4 {[%clk 0:01:30]}  Nxb4 {[%clk 0:02:11]} 10. axb4 {[%clk 0:01:30]}  Qxa1 {[%clk 0:02:10]} 11. dxc5 {[%clk 0:01:24]}  a5 {[%clk 0:01:30]} 12. b5 {[%clk 0:01:15]}  Nxc5 {[%clk 0:01:25]} 13. Bg2 {[%clk 0:01:12]}  Nb3 {[%clk 0:00:54]} 14. O-O {[%clk 0:01:10]}  Nxc1 {[%clk 0:00:54]} 15. Rxc1 {[%clk 0:01:11]}  Qf6 {[%clk 0:00:54]} 16. c5 {[%clk 0:01:06]}  O-O {[%clk 0:00:53]} 17. b6 {[%clk 0:01:05]}  d5 {[%clk 0:00:38]} 18. cxd6 {[%clk 0:01:04]}  Bd7 {[%clk 0:00:38]} 19. Qa2 {[%clk 0:00:49]}  Rfc8 {[%clk 0:00:35]} 20. Rc7 {[%clk 0:00:48]}  Rxc7 {[%clk 0:00:25]} 21. dxc7 {[%clk 0:00:43]}  Qc3 {[%clk 0:00:22]} 22. Nd2 {[%clk 0:00:27]}  Qc1+ {[%clk 0:00:18]} 23. Nf1 {[%clk 0:00:26]}  Ra6 {[%clk 0:00:06]} 24. Bxb7 {[%clk 0:00:18]}  Rxb6 {[%clk 0:00:06]} 25. Qxa5 {[%clk 0:00:18]}  Qxc7 {[%clk 0:00:02]} 26. Qa8+ {[%clk 0:00:13]}  Bc8 {[%clk 0:00:02]} 27. Qxc8+ {[%clk 0:00:12]}  Qxc8 {[%clk 0:00:02]} 28. Bxc8 {[%clk 0:00:13]}  Kf8 {[%clk 0:00:03]} 29. Bd7 {[%clk 0:00:12]}  Ke7 {[%clk 0:00:03]} 30. Ba4 {[%clk 0:00:12]}  Rb1 {[%clk 0:00:03]} 31. Bc2 {[%clk 0:00:11]}  Rb2 {[%clk 0:00:04]} 32. Bd3 {[%clk 0:00:11]}  f5 {[%clk 0:00:04]} 33. Kg2 {[%clk 0:00:09]}  g6 {[%clk 0:00:04]} 34. h4 {[%clk 0:00:09]}  e5 {[%clk 0:00:04]} 35. e4 {[%clk 0:00:00]}  Rb3 {[%clk 0:00:03]} 0-1


[Site "https://www.chess.com"]

[Event "Titled Tuesday Blitz May 9 Early 2023"]
[White "Rian, Kapriaga"]
[Black "Qiao, Cindy"]
[WhiteFideId "7103263"]
[BlackFideId "2620243"]
[WhiteElo "2312"]
[BlackElo "1777"]
[Result "1-0"]
[Round "11"]
[TimeControl "180+2"]
[Date "2023.05.09"]
[WhiteClock "0:00:03"]
[BlackClock "0:00:17"]

1. d4 {[%clk 0:03:00]}  d5 {[%clk 0:03:00]} 2. Nf3 {[%clk 0:03:00]}  Nf6 {[%clk 0:03:00]} 3. Bf4 {[%clk 0:02:59]}  e6 {[%clk 0:03:00]} 4. e3 {[%clk 0:02:59]}  Bd6 {[%clk 0:03:01]} 5. Bg3 {[%clk 0:02:59]}  b6 {[%clk 0:03:01]} 6. Nbd2 {[%clk 0:02:59]}  Bb7 {[%clk 0:03:01]} 7. Bd3 {[%clk 0:02:58]}  O-O {[%clk 0:03:00]} 8. O-O {[%clk 0:02:58]}  c5 {[%clk 0:03:00]} 9. c3 {[%clk 0:02:57]}  Nc6 {[%clk 0:03:00]} 10. Qe2 {[%clk 0:02:52]}  Qc7 {[%clk 0:02:45]} 11. dxc5 {[%clk 0:02:41]}  bxc5 {[%clk 0:02:44]} 12. e4 {[%clk 0:02:41]}  Bxg3 {[%clk 0:02:37]} 13. hxg3 {[%clk 0:02:39]}  Rfe8 {[%clk 0:02:19]} 14. e5 {[%clk 0:02:34]}  Nd7 {[%clk 0:02:17]} 15. Rfe1 {[%clk 0:02:30]}  Rab8 {[%clk 0:02:15]} 16. g4 {[%clk 0:02:26]}  Ne7 {[%clk 0:02:01]} 17. g3 {[%clk 0:02:23]}  Ng6 {[%clk 0:02:01]} 18. b4 {[%clk 0:01:41]}  d4 {[%clk 0:01:54]} 19. cxd4 {[%clk 0:01:35]}  cxb4 {[%clk 0:01:53]} 20. Ne4 {[%clk 0:01:20]}  Bxe4 {[%clk 0:01:31]} 21. Bxe4 {[%clk 0:01:15]}  Nb6 {[%clk 0:01:31]} 22. Kg2 {[%clk 0:01:12]}  Red8 {[%clk 0:01:30]} 23. Rh1 {[%clk 0:01:08]}  Nd5 {[%clk 0:01:21]} 24. Rac1 {[%clk 0:00:49]}  Qe7 {[%clk 0:01:12]} 25. Qd2 {[%clk 0:00:27]}  Nc3 {[%clk 0:01:08]} 26. Bxg6 {[%clk 0:00:21]}  fxg6 {[%clk 0:01:00]} 27. Rh2 {[%clk 0:00:17]}  h6 {[%clk 0:00:53]} 28. Rch1 {[%clk 0:00:12]}  Rf8 {[%clk 0:00:53]} 29. Nh4 {[%clk 0:00:10]}  Qf7 {[%clk 0:00:47]} 30. f4 {[%clk 0:00:10]}  Qb7+ {[%clk 0:00:39]} 31. Nf3 {[%clk 0:00:09]}  Qe4 {[%clk 0:00:30]} 32. g5 {[%clk 0:00:07]}  h5 {[%clk 0:00:30]} 33. Kf2 {[%clk 0:00:07]}  Rbc8 {[%clk 0:00:27]} 34. Re1 {[%clk 0:00:06]}  Qb7 {[%clk 0:00:22]} 35. Qd3 {[%clk 0:00:06]}  Qf7 {[%clk 0:00:20]} 36. Nh4 {[%clk 0:00:05]}  Kh7 {[%clk 0:00:18]} 37. Nxg6 {[%clk 0:00:04]}  Qxg6 {[%clk 0:00:19]} 38. Rxh5+ {[%clk 0:00:04]}  Kg8 {[%clk 0:00:17]} 39. Qxg6 {[%clk 0:00:05]}  Ne4+ {[%clk 0:00:17]} 40. Rxe4 {[%clk 0:00:05]}  Rc2+ {[%clk 0:00:17]} 41. Re2 {[%clk 0:00:05]}  Rfc8 {[%clk 0:00:18]} 42. Rxc2 {[%clk 0:00:04]}  Rxc2+ {[%clk 0:00:19]} 43. Qxc2 {[%clk 0:00:04]}  b3 {[%clk 0:00:20]} 44. Qc7 {[%clk 0:00:03]}  bxa2 {[%clk 0:00:17]} 45. g6 {[%clk 0:00:03]} 1-0


[Site "https://www.chess.com"]

[Event "Titled Tuesday Blitz May 9 Early 2023"]
[White "Jiganchine, Roman"]
[Black "Marcziter, Dmitrii"]
[WhiteFideId "2603667"]
[BlackFideId "13900765"]
[WhiteElo "2269"]
[BlackElo "2162"]
[Result "0-1"]
[Round "11"]
[TimeControl "180+2"]
[Date "2023.05.09"]
[WhiteClock "0:00:00"]
[BlackClock "0:00:22"]

1. e4 {[%clk 0:02:39]}  c5 {[%clk 0:02:59]} 2. Nf3 {[%clk 0:02:37]}  a6 {[%clk 0:02:59]} 3. c3 {[%clk 0:02:28]}  d5 {[%clk 0:02:58]} 4. exd5 {[%clk 0:02:25]}  Qxd5 {[%clk 0:02:59]} 5. d4 {[%clk 0:02:25]}  Nf6 {[%clk 0:02:58]} 6. Bd3 {[%clk 0:02:23]}  Bg4 {[%clk 0:02:57]} 7. Nbd2 {[%clk 0:02:07]}  e6 {[%clk 0:02:55]} 8. O-O {[%clk 0:01:47]}  cxd4 {[%clk 0:02:53]} 9. cxd4 {[%clk 0:01:46]}  Nc6 {[%clk 0:02:53]} 10. h3 {[%clk 0:01:45]}  Bh5 {[%clk 0:02:52]} 11. g4 {[%clk 0:01:45]}  Bg6 {[%clk 0:02:52]} 12. Bc4 {[%clk 0:01:45]}  Qd6 {[%clk 0:02:51]} 13. Qb3 {[%clk 0:01:40]}  b5 {[%clk 0:02:47]} 14. d5 {[%clk 0:01:09]}  exd5 {[%clk 0:02:28]} 15. Re1+ {[%clk 0:01:06]}  Be7 {[%clk 0:02:26]} 16. Bf1 {[%clk 0:00:53]}  O-O {[%clk 0:02:24]} 17. Bg2 {[%clk 0:00:53]}  Ne4 {[%clk 0:02:18]} 18. Nf1 {[%clk 0:00:45]}  Na5 {[%clk 0:02:06]} 19. Qd1 {[%clk 0:00:43]}  Nc4 {[%clk 0:02:01]} 20. b3 {[%clk 0:00:35]}  Bf6 {[%clk 0:01:58]} 21. bxc4 {[%clk 0:00:32]}  Bxa1 {[%clk 0:01:56]} 22. cxd5 {[%clk 0:00:29]}  Bc3 {[%clk 0:01:51]} 23. Re3 {[%clk 0:00:27]}  Rad8 {[%clk 0:01:42]} 24. Ng5 {[%clk 0:00:19]}  Nxg5 {[%clk 0:01:32]} 25. Rxc3 {[%clk 0:00:19]}  Be4 {[%clk 0:01:28]} 26. Bxg5 {[%clk 0:00:16]}  Bxg2 {[%clk 0:01:27]} 27. Kxg2 {[%clk 0:00:16]}  Qxd5+ {[%clk 0:01:23]} 28. Qxd5 {[%clk 0:00:16]}  Rxd5 {[%clk 0:01:23]} 29. Be7 {[%clk 0:00:16]}  Re8 {[%clk 0:01:22]} 30. Bb4 {[%clk 0:00:16]}  h5 {[%clk 0:01:18]} 31. a3 {[%clk 0:00:15]}  hxg4 {[%clk 0:01:18]} 32. hxg4 {[%clk 0:00:15]}  Re4 {[%clk 0:01:12]} 33. Ne3 {[%clk 0:00:15]}  Rd8 {[%clk 0:01:09]} 34. Kf3 {[%clk 0:00:14]}  Red4 {[%clk 0:01:05]} 35. Bc5 {[%clk 0:00:14]}  Rd2 {[%clk 0:01:02]} 36. Bb4 {[%clk 0:00:13]}  Ra2 {[%clk 0:01:00]} 37. Rc7 {[%clk 0:00:11]}  a5 {[%clk 0:00:53]} 38. Bxa5 {[%clk 0:00:10]}  Rxa3 {[%clk 0:00:53]} 39. Bb4 {[%clk 0:00:08]}  Rb3 {[%clk 0:00:51]} 40. Be7 {[%clk 0:00:06]}  Rb8 {[%clk 0:00:49]} 41. Bd6 {[%clk 0:00:05]}  Rd3 {[%clk 0:00:46]} 42. Be5 {[%clk 0:00:05]}  b4 {[%clk 0:00:40]} 43. Ke4 {[%clk 0:00:05]}  Rd2 {[%clk 0:00:35]} 44. Rc1 {[%clk 0:00:06]}  Re8 {[%clk 0:00:28]} 45. Nc4 {[%clk 0:00:06]}  Rxf2 {[%clk 0:00:24]} 46. Nd6 {[%clk 0:00:03]}  Re2+ {[%clk 0:00:22]} 47. Kd4 {[%clk 0:00:00]}  R8xe5 {[%clk 0:00:22]} 0-1


[Site "https://www.chess.com"]

[Event "Titled Tuesday Blitz May 9 Early 2023"]
[White "Sharma, Dinesh K."]
[Black "Vaglio Munoz, Jaime"]
[WhiteFideId "5004110"]
[BlackFideId "6500145"]
[WhiteElo "2334"]
[BlackElo "2199"]
[Result "1-0"]
[Round "11"]
[TimeControl "180+2"]
[Date "2023.05.09"]
[WhiteClock "0:02:32"]
[BlackClock "0:01:53"]

1. e4 {[%clk 0:03:00]}  e6 {[%clk 0:02:59]} 2. d4 {[%clk 0:02:59]}  d5 {[%clk 0:02:59]} 3. Nc3 {[%clk 0:03:00]}  dxe4 {[%clk 0:03:00]} 4. Nxe4 {[%clk 0:02:59]}  Nf6 {[%clk 0:03:01]} 5. Nxf6+ {[%clk 0:02:58]}  Qxf6 {[%clk 0:03:02]} 6. Nf3 {[%clk 0:02:59]}  h6 {[%clk 0:03:02]} 7. Bd3 {[%clk 0:02:59]}  Nc6 {[%clk 0:03:02]} 8. Be3 {[%clk 0:03:00]}  Bd6 {[%clk 0:03:02]} 9. O-O {[%clk 0:02:59]}  O-O {[%clk 0:03:01]} 10. c3 {[%clk 0:02:58]}  e5 {[%clk 0:03:01]} 11. dxe5 {[%clk 0:02:58]}  Nxe5 {[%clk 0:03:02]} 12. Nxe5 {[%clk 0:02:58]}  Qxe5 {[%clk 0:03:01]} 13. g3 {[%clk 0:02:59]}  Bh3 {[%clk 0:03:00]} 14. Re1 {[%clk 0:02:58]}  Qf6 {[%clk 0:03:00]} 15. Be4 {[%clk 0:02:56]}  Rad8 {[%clk 0:02:58]} 16. Qf3 {[%clk 0:02:55]}  Qxf3 {[%clk 0:02:44]} 17. Bxf3 {[%clk 0:02:56]}  c6 {[%clk 0:02:44]} 18. Bxa7 {[%clk 0:02:54]}  c5 {[%clk 0:02:42]} 19. Bb6 {[%clk 0:02:53]}  Rd7 {[%clk 0:02:41]} 20. a4 {[%clk 0:02:53]}  Be6 {[%clk 0:02:23]} 21. a5 {[%clk 0:02:50]}  g5 {[%clk 0:02:19]} 22. Rad1 {[%clk 0:02:51]}  g4 {[%clk 0:02:16]} 23. Bxb7 {[%clk 0:02:49]}  Bb3 {[%clk 0:02:13]} 24. Rxd6 {[%clk 0:02:44]}  Rxb7 {[%clk 0:02:11]} 25. Bxc5 {[%clk 0:02:43]}  Rc8 {[%clk 0:02:08]} 26. Bb6 {[%clk 0:02:40]}  Be6 {[%clk 0:02:06]} 27. a6 {[%clk 0:02:40]}  Re7 {[%clk 0:02:05]} 28. a7 {[%clk 0:02:39]}  Ra8 {[%clk 0:02:04]} 29. b4 {[%clk 0:02:38]}  Rb7 {[%clk 0:02:03]} 30. Bd4 {[%clk 0:02:37]}  Kf8 {[%clk 0:02:02]} 31. Rexe6 {[%clk 0:02:36]}  fxe6 {[%clk 0:02:01]} 32. Rxe6 {[%clk 0:02:37]}  h5 {[%clk 0:02:01]} 33. Rh6 {[%clk 0:02:37]}  Rbxa7 {[%clk 0:01:56]} 34. Bxa7 {[%clk 0:02:35]}  Rxa7 {[%clk 0:01:57]} 35. Rxh5 {[%clk 0:02:35]}  Kf7 {[%clk 0:01:56]} 36. Rh7+ {[%clk 0:02:35]}  Kg6 {[%clk 0:01:55]} 37. Rxa7 {[%clk 0:02:34]}  Kg5 {[%clk 0:01:53]} 38. Ra5+ {[%clk 0:02:32]} 1-0


[Site "https://www.chess.com"]

[Event "Titled Tuesday Blitz May 9 Early 2023"]
[White "Sadovsky, Artem"]
[Black "Fabris, Alberto"]
[WhiteFideId "4155840"]
[BlackFideId "801348"]
[WhiteElo "2314"]
[BlackElo "2175"]
[Result "1-0"]
[Round "11"]
[TimeControl "180+2"]
[Date "2023.05.09"]
[WhiteClock "0:02:14"]
[BlackClock "0:00:48"]

1. Nf3 {[%clk 0:03:00]}  Nf6 {[%clk 0:02:59]} 2. e3 {[%clk 0:03:00]}  d5 {[%clk 0:02:56]} 3. c4 {[%clk 0:03:00]}  e6 {[%clk 0:02:55]} 4. b3 {[%clk 0:03:00]}  Be7 {[%clk 0:02:54]} 5. Bb2 {[%clk 0:03:00]}  O-O {[%clk 0:02:54]} 6. Be2 {[%clk 0:03:00]}  c5 {[%clk 0:02:52]} 7. O-O {[%clk 0:02:59]}  b6 {[%clk 0:02:52]} 8. cxd5 {[%clk 0:02:59]}  Nxd5 {[%clk 0:02:50]} 9. d4 {[%clk 0:02:59]}  Bf6 {[%clk 0:02:48]} 10. e4 {[%clk 0:02:53]}  Nf4 {[%clk 0:02:47]} 11. e5 {[%clk 0:02:43]}  Nxe2+ {[%clk 0:02:43]} 12. Qxe2 {[%clk 0:02:42]}  Be7 {[%clk 0:02:37]} 13. Qe4 {[%clk 0:02:42]}  Qd5 {[%clk 0:02:36]} 14. Qxd5 {[%clk 0:02:43]}  exd5 {[%clk 0:02:36]} 15. Nc3 {[%clk 0:02:43]}  Bb7 {[%clk 0:02:35]} 16. Rfd1 {[%clk 0:02:43]}  Rd8 {[%clk 0:02:33]} 17. Rac1 {[%clk 0:02:42]}  Na6 {[%clk 0:02:30]} 18. Nb5 {[%clk 0:02:37]}  Bc6 {[%clk 0:02:24]} 19. Nd6 {[%clk 0:02:30]}  Bxd6 {[%clk 0:02:21]} 20. exd6 {[%clk 0:02:31]}  Rxd6 {[%clk 0:02:20]} 21. dxc5 {[%clk 0:02:31]}  bxc5 {[%clk 0:02:17]} 22. Ba3 {[%clk 0:02:31]}  Nb4 {[%clk 0:02:03]} 23. Rxc5 {[%clk 0:02:27]}  a5 {[%clk 0:01:56]} 24. Rxa5 {[%clk 0:02:27]}  Rxa5 {[%clk 0:01:40]} 25. Bxb4 {[%clk 0:02:27]}  Rg6 {[%clk 0:01:02]} 26. Bxa5 {[%clk 0:02:25]}  d4 {[%clk 0:01:02]} 27. Rxd4 {[%clk 0:02:25]}  h6 {[%clk 0:00:56]} 28. Nh4 {[%clk 0:02:17]}  Rg5 {[%clk 0:00:48]} 29. Bd2 {[%clk 0:02:14]} 1-0


[Site "https://www.chess.com"]

[Event "Titled Tuesday Blitz May 9 Early 2023"]
[White "Da Silva, Lindolfo Luiz"]
[Black "Kuchava, Ana"]
[WhiteFideId "2106558"]
[BlackFideId "13605348"]
[WhiteElo "2424"]
[BlackElo "2001"]
[Result "1-0"]
[Round "11"]
[TimeControl "180+2"]
[Date "2023.05.09"]
[WhiteClock "0:00:33"]
[BlackClock "0:00:00"]

1. d4 {[%clk 0:03:00]}  d5 {[%clk 0:02:58]} 2. g3 {[%clk 0:03:00]}  Nf6 {[%clk 0:02:57]} 3. Bg2 {[%clk 0:03:01]}  Bf5 {[%clk 0:02:47]} 4. c4 {[%clk 0:03:02]}  c6 {[%clk 0:02:45]} 5. Nc3 {[%clk 0:03:03]}  e6 {[%clk 0:02:43]} 6. Qb3 {[%clk 0:03:03]}  Qb6 {[%clk 0:02:40]} 7. c5 {[%clk 0:03:03]}  Qxb3 {[%clk 0:02:32]} 8. axb3 {[%clk 0:03:04]}  a6 {[%clk 0:02:32]} 9. b4 {[%clk 0:03:04]}  Nbd7 {[%clk 0:02:28]} 10. f3 {[%clk 0:03:05]}  Rc8 {[%clk 0:02:24]} 11. e4 {[%clk 0:03:06]}  dxe4 {[%clk 0:02:23]} 12. fxe4 {[%clk 0:03:07]}  Bg6 {[%clk 0:02:23]} 13. Nge2 {[%clk 0:03:08]}  Be7 {[%clk 0:02:18]} 14. O-O {[%clk 0:03:08]}  O-O {[%clk 0:02:18]} 15. h3 {[%clk 0:03:08]}  Rfd8 {[%clk 0:02:10]} 16. Be3 {[%clk 0:03:08]}  h6 {[%clk 0:01:33]} 17. Rfd1 {[%clk 0:03:00]}  Nf8 {[%clk 0:01:27]} 18. d5 {[%clk 0:03:00]}  exd5 {[%clk 0:01:26]} 19. exd5 {[%clk 0:03:01]}  cxd5 {[%clk 0:01:26]} 20. Nxd5 {[%clk 0:03:00]}  Nxd5 {[%clk 0:01:23]} 21. Bxd5 {[%clk 0:03:00]}  Rc7 {[%clk 0:01:21]} 22. Nf4 {[%clk 0:02:59]}  Rcd7 {[%clk 0:01:10]} 23. Nxg6 {[%clk 0:02:47]}  Nxg6 {[%clk 0:01:11]} 24. Bf3 {[%clk 0:02:48]}  Ne5 {[%clk 0:01:07]} 25. Rxd7 {[%clk 0:02:41]}  Nxf3+ {[%clk 0:01:05]} 26. Kf2 {[%clk 0:02:41]}  Rxd7 {[%clk 0:01:03]} 27. Kxf3 {[%clk 0:02:42]}  Bf6 {[%clk 0:01:04]} 28. c6 {[%clk 0:02:30]}  bxc6 {[%clk 0:01:01]} 29. Rxa6 {[%clk 0:02:30]}  Rc7 {[%clk 0:00:57]} 30. b3 {[%clk 0:02:19]}  Kf8 {[%clk 0:00:50]} 31. Ra8+ {[%clk 0:02:14]}  Ke7 {[%clk 0:00:50]} 32. Bb6 {[%clk 0:02:14]}  Rb7 {[%clk 0:00:40]} 33. Bc5+ {[%clk 0:02:12]}  Ke6 {[%clk 0:00:38]} 34. Ke4 {[%clk 0:02:12]}  Bc3 {[%clk 0:00:36]} 35. Re8+ {[%clk 0:02:08]}  Kf6 {[%clk 0:00:31]} 36. Rd8 {[%clk 0:01:30]}  Bxb4 {[%clk 0:00:26]} 37. Rd6+ {[%clk 0:01:30]}  Kg5 {[%clk 0:00:25]} 38. Be3+ {[%clk 0:01:28]}  Kh5 {[%clk 0:00:25]} 39. Rxc6 {[%clk 0:01:24]}  Re7+ {[%clk 0:00:17]} 40. Kf3 {[%clk 0:01:23]}  Re6 {[%clk 0:00:12]} 41. Rc4 {[%clk 0:01:17]}  Bd6 {[%clk 0:00:11]} 42. b4 {[%clk 0:01:06]}  Re5 {[%clk 0:00:11]} 43. Rc6 {[%clk 0:01:00]}  Bxb4 {[%clk 0:00:10]} 44. g4+ {[%clk 0:00:59]}  Kh4 {[%clk 0:00:09]} 45. Bf4 {[%clk 0:00:58]}  Rd5 {[%clk 0:00:07]} 46. Rb6 {[%clk 0:00:48]}  Bc5 {[%clk 0:00:07]} 47. Rb5 {[%clk 0:00:47]}  Rd3+ {[%clk 0:00:07]} 48. Ke4 {[%clk 0:00:47]}  Rc3 {[%clk 0:00:07]} 49. Be5 {[%clk 0:00:46]}  Rc2 {[%clk 0:00:07]} 50. Kd3 {[%clk 0:00:42]}  Rc1 {[%clk 0:00:06]} 51. Bf4 {[%clk 0:00:43]}  Rd1+ {[%clk 0:00:05]} 52. Ke2 {[%clk 0:00:43]}  Rd5 {[%clk 0:00:05]} 53. Rb3 {[%clk 0:00:41]}  Bd4 {[%clk 0:00:04]} 54. Kf3 {[%clk 0:00:38]}  Be5 {[%clk 0:00:00]} 55. Ke4 {[%clk 0:00:33]} 1-0


[Site "https://www.chess.com"]

[Event "Titled Tuesday Blitz May 9 Early 2023"]
[White "Samaganova, Aleksandra"]
[Black "Fajdetic, Hrvoje"]
[WhiteFideId "13800221"]
[BlackFideId "14501945"]
[WhiteElo "1858"]
[BlackElo "2185"]
[Result "0-1"]
[Round "11"]
[TimeControl "180+2"]
[Date "2023.05.09"]
[WhiteClock "0:00:02"]
[BlackClock "0:00:08"]

1. c4 {[%clk 0:03:00]}  f5 {[%clk 0:02:49]} 2. Nc3 {[%clk 0:03:00]}  e5 {[%clk 0:02:48]} 3. g3 {[%clk 0:02:59]}  Nf6 {[%clk 0:02:48]} 4. Bg2 {[%clk 0:02:59]}  d6 {[%clk 0:02:48]} 5. e3 {[%clk 0:03:00]}  c6 {[%clk 0:02:48]} 6. Nge2 {[%clk 0:02:59]}  Be7 {[%clk 0:02:48]} 7. O-O {[%clk 0:02:58]}  O-O {[%clk 0:02:49]} 8. d4 {[%clk 0:02:58]}  Na6 {[%clk 0:02:40]} 9. a3 {[%clk 0:02:57]}  Nc7 {[%clk 0:02:38]} 10. b4 {[%clk 0:02:57]}  Qe8 {[%clk 0:02:35]} 11. b5 {[%clk 0:02:30]}  e4 {[%clk 0:02:28]} 12. bxc6 {[%clk 0:02:23]}  bxc6 {[%clk 0:02:29]} 13. Rb1 {[%clk 0:02:18]}  Ba6 {[%clk 0:02:16]} 14. Qb3 {[%clk 0:02:00]}  Qf7 {[%clk 0:02:09]} 15. d5 {[%clk 0:01:26]}  cxd5 {[%clk 0:02:02]} 16. cxd5 {[%clk 0:01:18]}  Ncxd5 {[%clk 0:02:01]} 17. Re1 {[%clk 0:01:04]}  Nxc3 {[%clk 0:01:54]} 18. Qxc3 {[%clk 0:01:03]}  Rfc8 {[%clk 0:01:42]} 19. Qa5 {[%clk 0:00:59]}  Bd3 {[%clk 0:01:33]} 20. Ra1 {[%clk 0:00:48]}  Qd5 {[%clk 0:01:27]} 21. Qa4 {[%clk 0:00:40]}  Rc4 {[%clk 0:01:07]} 22. Qb3 {[%clk 0:00:34]}  Bxe2 {[%clk 0:01:00]} 23. Bb2 {[%clk 0:00:12]}  Bd3 {[%clk 0:00:50]} 24. Bf1 {[%clk 0:00:05]}  Rac8 {[%clk 0:00:40]} 25. Qd1 {[%clk 0:00:03]}  Bxf1 {[%clk 0:00:38]} 26. Kxf1 {[%clk 0:00:03]}  Qxd1 {[%clk 0:00:38]} 27. Rexd1 {[%clk 0:00:04]}  Rc2 {[%clk 0:00:37]} 28. Bd4 {[%clk 0:00:04]}  Ng4 {[%clk 0:00:35]} 29. Bxa7 {[%clk 0:00:02]}  Rxf2+ {[%clk 0:00:34]} 30. Kg1 {[%clk 0:00:03]}  Rcc2 {[%clk 0:00:32]} 31. Rab1 {[%clk 0:00:01]}  Rg2+ {[%clk 0:00:30]} 32. Kh1 {[%clk 0:00:01]}  Rxh2+ {[%clk 0:00:29]} 33. Kg1 {[%clk 0:00:02]}  Rcg2+ {[%clk 0:00:27]} 34. Kf1 {[%clk 0:00:03]}  Rf2+ {[%clk 0:00:19]} 35. Kg1 {[%clk 0:00:03]}  Rb2 {[%clk 0:00:15]} 36. Rbc1 {[%clk 0:00:02]}  Rhc2 {[%clk 0:00:13]} 37. Bd4 {[%clk 0:00:01]}  Ra2 {[%clk 0:00:09]} 38. Rb1 {[%clk 0:00:01]}  h6 {[%clk 0:00:08]} 39. Rbc1 {[%clk 0:00:02]}  Bf6 {[%clk 0:00:08]} 40. Rxc2 {[%clk 0:00:02]}  Rxc2 {[%clk 0:00:08]} 41. Bb6 {[%clk 0:00:02]}  Be5 {[%clk 0:00:08]} 42. Bd8 {[%clk 0:00:02]}  Bxg3 {[%clk 0:00:07]} 43. Be7 {[%clk 0:00:02]}  Be5 {[%clk 0:00:07]} 44. Bd8 {[%clk 0:00:02]}  Rg2+ {[%clk 0:00:06]} 45. Kf1 {[%clk 0:00:02]}  Nxe3+ {[%clk 0:00:07]} 46. Ke1 {[%clk 0:00:02]}  Bc3+ {[%clk 0:00:07]} 47. Rd2 {[%clk 0:00:02]}  Bxd2# {[%clk 0:00:08]} 0-1


[Site "https://www.chess.com"]